[Event "Titled Tuesday Blitz April 11 Early 2023"]
[White "Albuquerque Junior,Wellington S."]
[Black "Krzywda, Andrzej"]
[WhiteFideId "2151480"]
[BlackFideId "1114565"]
[WhiteElo "2109"]
[BlackElo "2155"]
[Result "1/2-1/2"]
[Round "05"]
[TimeControl "180+2"]
[Date "2023.04.11"]
[WhiteClock "0:00:14"]
[BlackClock "0:00:03"]

1. c4 {[%clk 0:03:00]}  e6 {[%clk 0:02:58]} 2. Nf3 {[%clk 0:02:55]}  d5 {[%clk 0:02:53]} 3. g3 {[%clk 0:02:54]}  Nf6 {[%clk 0:02:52]} 4. Bg2 {[%clk 0:02:54]}  dxc4 {[%clk 0:02:53]} 5. O-O {[%clk 0:02:51]}  a6 {[%clk 0:02:49]} 6. a4 {[%clk 0:02:51]}  Nc6 {[%clk 0:02:48]} 7. Qc2 {[%clk 0:02:47]}  e5 {[%clk 0:02:47]} 8. Na3 {[%clk 0:02:37]}  e4 {[%clk 0:02:38]} 9. Ng5 {[%clk 0:02:28]}  Bxa3 {[%clk 0:02:20]} 10. bxa3 {[%clk 0:02:25]}  O-O {[%clk 0:02:06]} 11. Bb2 {[%clk 0:01:27]}  Bf5 {[%clk 0:01:42]} 12. Qxc4 {[%clk 0:01:21]}  Qe7 {[%clk 0:01:12]} 13. Bxf6 {[%clk 0:01:06]}  Qxf6 {[%clk 0:01:11]} 14. Nxe4 {[%clk 0:01:01]}  Qh6 {[%clk 0:01:08]} 15. d3 {[%clk 0:00:49]}  Ne5 {[%clk 0:01:01]} 16. Qc1 {[%clk 0:00:42]}  Qh5 {[%clk 0:00:55]} 17. Qg5 {[%clk 0:00:31]}  Qxg5 {[%clk 0:00:46]} 18. Nxg5 {[%clk 0:00:32]}  c6 {[%clk 0:00:44]} 19. Rab1 {[%clk 0:00:20]}  Rab8 {[%clk 0:00:41]} 20. Rb4 {[%clk 0:00:13]}  a5 {[%clk 0:00:31]} 21. Rb6 {[%clk 0:00:10]}  Nd7 {[%clk 0:00:31]} 22. Rb2 {[%clk 0:00:10]}  Nc5 {[%clk 0:00:31]} 23. Rc1 {[%clk 0:00:05]}  Nxa4 {[%clk 0:00:30]} 24. Rb3 {[%clk 0:00:03]}  h6 {[%clk 0:00:25]} 25. Ne4 {[%clk 0:00:04]}  Be6 {[%clk 0:00:26]} 26. Rbb1 {[%clk 0:00:04]}  Bd5 {[%clk 0:00:16]} 27. Nc3 {[%clk 0:00:03]}  Nxc3 {[%clk 0:00:15]} 28. Rxc3 {[%clk 0:00:04]}  Bxg2 {[%clk 0:00:15]} 29. Kxg2 {[%clk 0:00:05]}  Rfc8 {[%clk 0:00:13]} 30. Rb6 {[%clk 0:00:05]}  Rc7 {[%clk 0:00:12]} 31. e4 {[%clk 0:00:05]}  Kf8 {[%clk 0:00:12]} 32. d4 {[%clk 0:00:05]}  Ke7 {[%clk 0:00:11]} 33. Kf3 {[%clk 0:00:06]}  Kd7 {[%clk 0:00:11]} 34. Ke3 {[%clk 0:00:06]}  Kc8 {[%clk 0:00:11]} 35. Kd3 {[%clk 0:00:05]}  Re7 {[%clk 0:00:11]} 36. f3 {[%clk 0:00:05]}  Kc7 {[%clk 0:00:12]} 37. Rbb3 {[%clk 0:00:05]}  b5 {[%clk 0:00:12]} 38. Rb2 {[%clk 0:00:04]}  Rd8 {[%clk 0:00:11]} 39. a4 {[%clk 0:00:04]}  b4 {[%clk 0:00:11]} 40. Rc5 {[%clk 0:00:04]}  Kb6 {[%clk 0:00:10]} 41. Rbc2 {[%clk 0:00:04]}  Rd6 {[%clk 0:00:11]} 42. R5c4 {[%clk 0:00:04]}  Red7 {[%clk 0:00:10]} 43. Ke3 {[%clk 0:00:04]}  f6 {[%clk 0:00:10]} 44. f4 {[%clk 0:00:04]}  Rc7 {[%clk 0:00:10]} 45. e5 {[%clk 0:00:05]}  fxe5 {[%clk 0:00:10]} 46. fxe5 {[%clk 0:00:06]}  Rd8 {[%clk 0:00:09]} 47. Ke4 {[%clk 0:00:06]}  Rcd7 {[%clk 0:00:09]} 48. Rb2 {[%clk 0:00:06]}  Rd5 {[%clk 0:00:08]} 49. Rb3 {[%clk 0:00:06]}  c5 {[%clk 0:00:06]} 50. dxc5+ {[%clk 0:00:06]}  Rxc5 {[%clk 0:00:07]} 51. Rxc5 {[%clk 0:00:06]}  Kxc5 {[%clk 0:00:08]} 52. Kf5 {[%clk 0:00:06]}  Kc4 {[%clk 0:00:09]} 53. Rb1 {[%clk 0:00:06]}  b3 {[%clk 0:00:09]} 54. e6 {[%clk 0:00:07]}  Kc3 {[%clk 0:00:09]} 55. e7 {[%clk 0:00:07]}  Rb8 {[%clk 0:00:08]} 56. Ke6 {[%clk 0:00:07]}  Kc2 {[%clk 0:00:09]} 57. Rf1 {[%clk 0:00:08]}  b2 {[%clk 0:00:09]} 58. Rf2+ {[%clk 0:00:08]}  Kc3 {[%clk 0:00:09]} 59. Rf3+ {[%clk 0:00:08]}  Kd4 {[%clk 0:00:08]} 60. Rf1 {[%clk 0:00:09]}  b1=Q {[%clk 0:00:04]} 61. Rxb1 {[%clk 0:00:09]}  Rxb1 {[%clk 0:00:05]} 62. e8=Q {[%clk 0:00:09]}  Re1+ {[%clk 0:00:06]} 63. Kf7 {[%clk 0:00:09]}  Rxe8 {[%clk 0:00:06]} 64. Kxe8 {[%clk 0:00:10]}  Kc5 {[%clk 0:00:07]} 65. Kf7 {[%clk 0:00:11]}  Kb4 {[%clk 0:00:07]} 66. Kxg7 {[%clk 0:00:12]}  Kxa4 {[%clk 0:00:08]} 67. h4 {[%clk 0:00:12]}  Kb3 {[%clk 0:00:09]} 68. g4 {[%clk 0:00:13]}  a4 {[%clk 0:00:10]} 69. Kxh6 {[%clk 0:00:13]}  a3 {[%clk 0:00:10]} 70. g5 {[%clk 0:00:14]}  a2 {[%clk 0:00:11]} 71. g6 {[%clk 0:00:14]}  a1=Q {[%clk 0:00:11]} 72. g7 {[%clk 0:00:15]}  Qa6+ {[%clk 0:00:10]} 73. Kh7 {[%clk 0:00:15]}  Qd3+ {[%clk 0:00:10]} 74. Kh8 {[%clk 0:00:15]}  Qd4 {[%clk 0:00:09]} 75. h5 {[%clk 0:00:14]}  Qf6 {[%clk 0:00:09]} 76. Kh7 {[%clk 0:00:14]}  Qf7 {[%clk 0:00:07]} 77. h6 {[%clk 0:00:14]}  Kc4 {[%clk 0:00:05]} 78. Kh8 {[%clk 0:00:15]}  Qf6 {[%clk 0:00:03]} 79. Kh7 {[%clk 0:00:15]}  Qf7 {[%clk 0:00:03]} 80. Kh8 {[%clk 0:00:16]}  Qf6 {[%clk 0:00:03]} 81. Kh7 {[%clk 0:00:14]}  Qf5+ {[%clk 0:00:02]} 82. Kh8 {[%clk 0:00:14]}  Qf6 {[%clk 0:00:03]} 1/2-1/2


[Site "https://www.chess.com"]

[Event "Titled Tuesday Blitz April 11 Early 2023"]
[White "Sohier, Julien"]
[Black "Gheorghiu, Calin"]
[WhiteFideId "645346"]
[BlackFideId "1200305"]
[WhiteElo "2209"]
[BlackElo "2223"]
[Result "0-1"]
[Round "05"]
[TimeControl "180+2"]
[Date "2023.04.11"]
[WhiteClock "0:00:02"]
[BlackClock "0:00:20"]

1. e4 {[%clk 0:02:36]}  c5 {[%clk 0:02:59]} 2. Nc3 {[%clk 0:02:35]}  e6 {[%clk 0:02:54]} 3. Nf3 {[%clk 0:02:33]}  Nc6 {[%clk 0:02:50]} 4. Bb5 {[%clk 0:02:32]}  Nge7 {[%clk 0:02:47]} 5. O-O {[%clk 0:02:31]}  g6 {[%clk 0:02:44]} 6. Re1 {[%clk 0:02:16]}  Bg7 {[%clk 0:02:43]} 7. d4 {[%clk 0:02:12]}  Nxd4 {[%clk 0:02:33]} 8. Nxd4 {[%clk 0:02:04]}  cxd4 {[%clk 0:02:33]} 9. Ne2 {[%clk 0:01:54]}  Nc6 {[%clk 0:02:20]} 10. c3 {[%clk 0:01:41]}  Qb6 {[%clk 0:01:55]} 11. Bxc6 {[%clk 0:01:39]}  bxc6 {[%clk 0:01:52]} 12. Nxd4 {[%clk 0:01:37]}  d5 {[%clk 0:01:45]} 13. exd5 {[%clk 0:01:32]}  cxd5 {[%clk 0:01:45]} 14. Be3 {[%clk 0:01:22]}  Qa6 {[%clk 0:01:27]} 15. h4 {[%clk 0:01:07]}  O-O {[%clk 0:01:23]} 16. h5 {[%clk 0:01:06]}  e5 {[%clk 0:01:16]} 17. h6 {[%clk 0:01:04]}  Bh8 {[%clk 0:01:11]} 18. Nb3 {[%clk 0:00:59]}  Qc6 {[%clk 0:01:02]} 19. Qf3 {[%clk 0:00:52]}  Bf5 {[%clk 0:00:58]} 20. Bc5 {[%clk 0:00:43]}  Rfe8 {[%clk 0:00:53]} 21. Rad1 {[%clk 0:00:30]}  Be4 {[%clk 0:00:38]} 22. Qg3 {[%clk 0:00:24]}  Bc2 {[%clk 0:00:36]} 23. Ba3 {[%clk 0:00:18]}  Bxd1 {[%clk 0:00:35]} 24. Rxd1 {[%clk 0:00:19]}  d4 {[%clk 0:00:34]} 25. cxd4 {[%clk 0:00:17]}  exd4 {[%clk 0:00:34]} 26. Qd3 {[%clk 0:00:10]}  Qe4 {[%clk 0:00:32]} 27. Nxd4 {[%clk 0:00:08]}  Qxd3 {[%clk 0:00:30]} 28. Rxd3 {[%clk 0:00:09]}  Rad8 {[%clk 0:00:30]} 29. Bc5 {[%clk 0:00:08]}  Re4 {[%clk 0:00:20]} 30. Bxa7 {[%clk 0:00:02]}  Bxd4 {[%clk 0:00:20]} 0-1


[Site "https://www.chess.com"]

[Event "Titled Tuesday Blitz April 11 Early 2023"]
[White "Manon-og, Ramon Jr."]
[Black "FuenfgegenWilly"]
[WhiteFideId "5200776"]
[WhiteElo "2390"]
[BlackElo "2235"]
[Result "1-0"]
[Round "05"]
[TimeControl "180+2"]
[Date "2023.04.11"]
[WhiteClock "0:00:34"]
[BlackClock "0:00:02"]

1. e4 {[%clk 0:03:00]}  e5 {[%clk 0:02:57]} 2. Nf3 {[%clk 0:03:00]}  Nc6 {[%clk 0:02:57]} 3. Bc4 {[%clk 0:03:00]}  Nf6 {[%clk 0:02:57]} 4. Ng5 {[%clk 0:03:00]}  d5 {[%clk 0:02:56]} 5. exd5 {[%clk 0:03:01]}  b5 {[%clk 0:02:56]} 6. Bf1 {[%clk 0:03:00]}  h6 {[%clk 0:02:56]} 7. dxc6 {[%clk 0:02:56]}  hxg5 {[%clk 0:02:55]} 8. d3 {[%clk 0:02:52]}  Bc5 {[%clk 0:02:53]} 9. Nc3 {[%clk 0:02:49]}  Ng4 {[%clk 0:02:45]} 10. Ne4 {[%clk 0:02:47]}  Bb6 {[%clk 0:02:12]} 11. Bxg5 {[%clk 0:02:44]}  f6 {[%clk 0:02:06]} 12. Be2 {[%clk 0:02:44]}  Nxf2 {[%clk 0:01:36]} 13. Nxf2 {[%clk 0:02:40]}  Bxf2+ {[%clk 0:01:36]} 14. Kxf2 {[%clk 0:02:40]}  fxg5 {[%clk 0:01:37]} 15. Bh5+ {[%clk 0:02:40]}  Ke7 {[%clk 0:01:37]} 16. c3 {[%clk 0:02:29]}  Rf8+ {[%clk 0:01:35]} 17. Ke1 {[%clk 0:02:24]}  Bf5 {[%clk 0:01:26]} 18. Qe2 {[%clk 0:02:23]}  Qd6 {[%clk 0:01:25]} 19. Rd1 {[%clk 0:02:14]}  g6 {[%clk 0:01:22]} 20. Bf3 {[%clk 0:02:12]}  Kf6 {[%clk 0:00:59]} 21. Rf1 {[%clk 0:02:10]}  Kg7 {[%clk 0:00:59]} 22. h3 {[%clk 0:02:04]}  a5 {[%clk 0:00:56]} 23. Qe3 {[%clk 0:02:04]}  b4 {[%clk 0:00:53]} 24. Qxg5 {[%clk 0:02:03]}  bxc3 {[%clk 0:00:48]} 25. bxc3 {[%clk 0:02:04]}  Bxd3 {[%clk 0:00:34]} 26. Rf2 {[%clk 0:01:54]}  e4 {[%clk 0:00:30]} 27. Bxe4 {[%clk 0:01:47]}  Rae8 {[%clk 0:00:30]} 28. Rxd3 {[%clk 0:01:38]}  Rxe4+ {[%clk 0:00:29]} 29. Re3 {[%clk 0:01:39]}  Rfe8 {[%clk 0:00:26]} 30. Rfe2 {[%clk 0:01:35]}  Qxc6 {[%clk 0:00:25]} 31. Kf2 {[%clk 0:01:29]}  Qb6 {[%clk 0:00:20]} 32. h4 {[%clk 0:01:23]}  R8e5 {[%clk 0:00:15]} 33. Qg3 {[%clk 0:01:18]}  Qf6+ {[%clk 0:00:12]} 34. Kg1 {[%clk 0:01:19]}  Rxe3 {[%clk 0:00:05]} 35. Rxe3 {[%clk 0:01:19]}  Rc5 {[%clk 0:00:04]} 36. Kh2 {[%clk 0:01:15]}  Kh6 {[%clk 0:00:04]} 37. Rf3 {[%clk 0:01:14]}  Rf5 {[%clk 0:00:04]} 38. Rxf5 {[%clk 0:01:12]}  gxf5 {[%clk 0:00:05]} 39. Qf4+ {[%clk 0:01:09]}  Kg6 {[%clk 0:00:05]} 40. Qg3+ {[%clk 0:01:07]}  Kh5 {[%clk 0:00:05]} 41. Kh3 {[%clk 0:01:08]}  f4 {[%clk 0:00:05]} 42. Qg4+ {[%clk 0:01:08]}  Kh6 {[%clk 0:00:05]} 43. c4 {[%clk 0:01:06]}  Qc3+ {[%clk 0:00:05]} 44. Kh2 {[%clk 0:01:06]}  Qxc4 {[%clk 0:00:05]} 45. Qg5+ {[%clk 0:01:06]}  Kh7 {[%clk 0:00:06]} 46. h5 {[%clk 0:01:06]}  Qxa2 {[%clk 0:00:05]} 47. Qg6+ {[%clk 0:01:06]}  Kh8 {[%clk 0:00:06]} 48. h6 {[%clk 0:01:07]}  Qg8 {[%clk 0:00:05]} 49. Qf6+ {[%clk 0:01:06]}  Kh7 {[%clk 0:00:06]} 50. Qc6 {[%clk 0:01:02]}  Qf7 {[%clk 0:00:03]} 51. Qe4+ {[%clk 0:01:01]}  Kxh6 {[%clk 0:00:03]} 52. Qc6+ {[%clk 0:01:00]}  Kg5 {[%clk 0:00:04]} 53. Qc5+ {[%clk 0:00:58]}  Qf5 {[%clk 0:00:04]} 54. Qxc7 {[%clk 0:00:58]}  Kf6 {[%clk 0:00:04]} 55. Qb6+ {[%clk 0:00:57]}  Kg5 {[%clk 0:00:04]} 56. Qd8+ {[%clk 0:00:57]}  Kg6 {[%clk 0:00:05]} 57. Qg8+ {[%clk 0:00:57]}  Kf6 {[%clk 0:00:05]} 58. Qf8+ {[%clk 0:00:56]}  Ke5 {[%clk 0:00:06]} 59. Qc5+ {[%clk 0:00:53]}  Ke4 {[%clk 0:00:07]} 60. Qc2+ {[%clk 0:00:53]}  Ke5 {[%clk 0:00:08]} 61. Qb2+ {[%clk 0:00:53]}  Ke6 {[%clk 0:00:08]} 62. Qb6+ {[%clk 0:00:52]}  Kf7 {[%clk 0:00:08]} 63. Qc7+ {[%clk 0:00:52]}  Kg6 {[%clk 0:00:08]} 64. Qd6+ {[%clk 0:00:51]}  Kh5 {[%clk 0:00:08]} 65. Qe7 {[%clk 0:00:47]}  Qg5 {[%clk 0:00:07]} 66. Qh7+ {[%clk 0:00:47]}  Qh6 {[%clk 0:00:06]} 67. Qf5+ {[%clk 0:00:47]}  Qg5 {[%clk 0:00:07]} 68. Qh7+ {[%clk 0:00:47]}  Qh6 {[%clk 0:00:07]} 69. Qf5+ {[%clk 0:00:46]}  Qg5 {[%clk 0:00:05]} 70. Qf7+ {[%clk 0:00:45]}  Kh6 {[%clk 0:00:04]} 71. Qf8+ {[%clk 0:00:44]}  Kg6 {[%clk 0:00:04]} 72. Qd6+ {[%clk 0:00:43]}  Kh5 {[%clk 0:00:04]} 73. Qd1+ {[%clk 0:00:43]}  Kh4 {[%clk 0:00:04]} 74. Qa1 {[%clk 0:00:34]}  Qg3+ {[%clk 0:00:04]} 75. Kh1 {[%clk 0:00:35]}  Qc3 {[%clk 0:00:02]} 76. Qxc3 {[%clk 0:00:34]} 1-0


[Site "https://www.chess.com"]

[Event "Titled Tuesday Blitz April 11 Early 2023"]
[White "Valle Maytin, Luis Enrique"]
[Black "Schuh, Karsten"]
[WhiteFideId "3503666"]
[BlackFideId "4637950"]
[WhiteElo "2225"]
[BlackElo "2138"]
[Result "0-1"]
[Round "05"]
[TimeControl "180+2"]
[Date "2023.04.11"]
[WhiteClock "0:00:02"]
[BlackClock "0:00:50"]

1. d4 {[%clk 0:02:26]}  f5 {[%clk 0:02:59]} 2. g4 {[%clk 0:02:25]}  d5 {[%clk 0:02:57]} 3. gxf5 {[%clk 0:02:25]}  Bxf5 {[%clk 0:02:57]} 4. Bg2 {[%clk 0:02:25]}  Nf6 {[%clk 0:02:56]} 5. Nc3 {[%clk 0:02:24]}  e6 {[%clk 0:02:55]} 6. Bf4 {[%clk 0:02:16]}  Bb4 {[%clk 0:02:51]} 7. e3 {[%clk 0:02:00]}  O-O {[%clk 0:02:47]} 8. Ne2 {[%clk 0:02:00]}  a6 {[%clk 0:02:18]} 9. a3 {[%clk 0:01:59]}  Bd6 {[%clk 0:02:18]} 10. Qd2 {[%clk 0:01:54]}  b5 {[%clk 0:02:15]} 11. O-O-O {[%clk 0:01:51]}  Nc6 {[%clk 0:02:14]} 12. Bxd6 {[%clk 0:01:45]}  cxd6 {[%clk 0:02:13]} 13. Ng3 {[%clk 0:01:33]}  Bg6 {[%clk 0:02:10]} 14. e4 {[%clk 0:01:20]}  dxe4 {[%clk 0:02:08]} 15. Ncxe4 {[%clk 0:01:18]}  Nxe4 {[%clk 0:02:03]} 16. Nxe4 {[%clk 0:01:02]}  Rc8 {[%clk 0:01:56]} 17. Rhe1 {[%clk 0:00:53]}  Na5 {[%clk 0:01:47]} 18. Bh3 {[%clk 0:00:38]}  Re8 {[%clk 0:01:40]} 19. Kb1 {[%clk 0:00:17]}  Nc4 {[%clk 0:01:38]} 20. Qe2 {[%clk 0:00:14]}  a5 {[%clk 0:01:33]} 21. Ng3 {[%clk 0:00:09]}  Bxc2+ {[%clk 0:01:17]} 22. Qxc2 {[%clk 0:00:08]}  Nxa3+ {[%clk 0:01:17]} 23. bxa3 {[%clk 0:00:09]}  Rxc2 {[%clk 0:01:17]} 24. Kxc2 {[%clk 0:00:10]}  Qc7+ {[%clk 0:01:14]} 25. Kb2 {[%clk 0:00:09]}  Qc4 {[%clk 0:01:10]} 26. Re3 {[%clk 0:00:08]}  b4 {[%clk 0:01:07]} 27. axb4 {[%clk 0:00:07]}  axb4 {[%clk 0:01:06]} 28. Rc1 {[%clk 0:00:07]}  Qxd4+ {[%clk 0:01:05]} 29. Kb3 {[%clk 0:00:06]}  Qd5+ {[%clk 0:01:00]} 30. Rc4 {[%clk 0:00:04]}  e5 {[%clk 0:00:52]} 31. Ne2 {[%clk 0:00:02]}  Ra8 {[%clk 0:00:50]} 0-1


[Site "https://www.chess.com"]

[Event "Titled Tuesday Blitz April 11 Early 2023"]
[White "MANOJ_MISHRA123"]
[Black "KorolDimitriy75"]
[WhiteElo "2104"]
[BlackElo "2370"]
[Result "1-0"]
[Round "05"]
[TimeControl "180+2"]
[Date "2023.04.11"]
[WhiteClock "0:00:17"]
[BlackClock "0:00:04"]

1. d4 {[%clk 0:03:00]}  Nf6 {[%clk 0:02:59]} 2. Bg5 {[%clk 0:03:00]}  Ne4 {[%clk 0:02:58]} 3. h4 {[%clk 0:02:59]}  c5 {[%clk 0:02:57]} 4. d5 {[%clk 0:02:59]}  Qb6 {[%clk 0:02:49]} 5. Nd2 {[%clk 0:02:58]}  Nxg5 {[%clk 0:02:06]} 6. hxg5 {[%clk 0:02:56]}  Qxb2 {[%clk 0:02:06]} 7. g6 {[%clk 0:02:57]}  fxg6 {[%clk 0:01:56]} 8. e4 {[%clk 0:02:40]}  g5 {[%clk 0:01:18]} 9. Ngf3 {[%clk 0:02:33]}  g6 {[%clk 0:00:59]} 10. Rb1 {[%clk 0:02:29]}  Qc3 {[%clk 0:00:58]} 11. Rb3 {[%clk 0:02:02]}  Qa5 {[%clk 0:00:53]} 12. Rb5 {[%clk 0:02:01]}  Qc3 {[%clk 0:00:20]} 13. Rb3 {[%clk 0:01:49]}  Qf6 {[%clk 0:00:15]} 14. e5 {[%clk 0:01:46]}  Qf4 {[%clk 0:00:12]} 15. g3 {[%clk 0:01:23]}  Qg4 {[%clk 0:00:12]} 16. c4 {[%clk 0:01:05]}  Qf5 {[%clk 0:00:05]} 17. Bd3 {[%clk 0:00:39]}  Qg4 {[%clk 0:00:05]} 18. Bxg6+ {[%clk 0:00:36]}  Kd8 {[%clk 0:00:04]} 19. Qc2 {[%clk 0:00:18]}  Bg7 {[%clk 0:00:04]} 20. Bf5 {[%clk 0:00:17]} 1-0


[Site "https://www.chess.com"]

[Event "Titled Tuesday Blitz April 11 Early 2023"]
[White "Wimalasuriya, Kasun M."]
[Black "Buscar, Michael"]
[WhiteFideId "9906789"]
[BlackFideId "2603616"]
[WhiteElo "2079"]
[BlackElo "2010"]
[Result "0-1"]
[Round "05"]
[TimeControl "180+2"]
[Date "2023.04.11"]
[WhiteClock "0:02:00"]
[BlackClock "0:01:29"]

1. d4 {[%clk 0:02:56]}  Nf6 {[%clk 0:02:57]} 2. c4 {[%clk 0:02:54]}  g6 {[%clk 0:02:56]} 3. Nc3 {[%clk 0:02:52]}  d5 {[%clk 0:02:57]} 4. cxd5 {[%clk 0:02:52]}  Nxd5 {[%clk 0:02:57]} 5. e4 {[%clk 0:02:43]}  Nxc3 {[%clk 0:02:57]} 6. bxc3 {[%clk 0:02:43]}  Bg7 {[%clk 0:02:57]} 7. Bc4 {[%clk 0:02:43]}  O-O {[%clk 0:02:54]} 8. Ne2 {[%clk 0:02:44]}  c5 {[%clk 0:02:54]} 9. Be3 {[%clk 0:02:42]}  cxd4 {[%clk 0:02:49]} 10. cxd4 {[%clk 0:02:42]}  Nc6 {[%clk 0:02:47]} 11. h4 {[%clk 0:02:34]}  Qa5+ {[%clk 0:02:42]} 12. Kf1 {[%clk 0:02:33]}  h5 {[%clk 0:02:33]} 13. Rc1 {[%clk 0:02:32]}  Bg4 {[%clk 0:02:24]} 14. f3 {[%clk 0:02:31]}  Bd7 {[%clk 0:02:25]} 15. d5 {[%clk 0:02:27]}  Ne5 {[%clk 0:02:19]} 16. Bb3 {[%clk 0:02:27]}  Bb5 {[%clk 0:02:17]} 17. Qd2 {[%clk 0:02:24]}  Qa6 {[%clk 0:02:11]} 18. Rc7 {[%clk 0:02:21]}  Bf6 {[%clk 0:01:50]} 19. Bd4 {[%clk 0:02:06]}  Rac8 {[%clk 0:01:40]} 20. Rxc8 {[%clk 0:02:05]}  Rxc8 {[%clk 0:01:39]} 21. Bxe5 {[%clk 0:02:03]}  Bxe5 {[%clk 0:01:39]} 22. Kf2 {[%clk 0:02:03]}  Bxe2 {[%clk 0:01:32]} 23. Qxe2 {[%clk 0:02:02]}  Bg3+ {[%clk 0:01:32]} 24. Ke3 {[%clk 0:02:00]}  Rc3+ {[%clk 0:01:31]} 25. Kd2 {[%clk 0:02:00]}  Bf4+ {[%clk 0:01:30]} 26. Kd1 {[%clk 0:02:00]}  Rc1# {[%clk 0:01:29]} 0-1


[Site "https://www.chess.com"]

[Event "Titled Tuesday Blitz April 11 Early 2023"]
[White "Rottenwohrer Suarez, Juan"]
[Black "Kornyukov, Alexey"]
[WhiteFideId "32068182"]
[BlackFideId "4150457"]
[WhiteElo "2174"]
[BlackElo "2352"]
[Result "1/2-1/2"]
[Round "05"]
[TimeControl "180+2"]
[Date "2023.04.11"]
[WhiteClock "0:00:13"]
[BlackClock "0:01:14"]

1. d4 {[%clk 0:01:13]}  d5 {[%clk 0:02:56]} 2. c4 {[%clk 0:01:13]}  e6 {[%clk 0:02:55]} 3. Nc3 {[%clk 0:01:13]}  Be7 {[%clk 0:02:55]} 4. cxd5 {[%clk 0:01:13]}  exd5 {[%clk 0:02:53]} 5. Bf4 {[%clk 0:01:13]}  Nf6 {[%clk 0:02:53]} 6. Nf3 {[%clk 0:01:14]}  O-O {[%clk 0:02:50]} 7. e3 {[%clk 0:01:15]}  c5 {[%clk 0:02:49]} 8. Bd3 {[%clk 0:01:13]}  c4 {[%clk 0:02:46]} 9. Bc2 {[%clk 0:01:12]}  Nc6 {[%clk 0:02:45]} 10. O-O {[%clk 0:01:12]}  a6 {[%clk 0:02:43]} 11. a4 {[%clk 0:01:12]}  Bg4 {[%clk 0:02:42]} 12. h3 {[%clk 0:01:12]}  Bh5 {[%clk 0:02:39]} 13. Qd2 {[%clk 0:00:59]}  Bxf3 {[%clk 0:02:36]} 14. gxf3 {[%clk 0:01:00]}  Qd7 {[%clk 0:02:27]} 15. Kg2 {[%clk 0:00:58]}  Nb4 {[%clk 0:02:22]} 16. Rae1 {[%clk 0:00:46]}  Nxc2 {[%clk 0:02:14]} 17. Qxc2 {[%clk 0:00:47]}  Nh5 {[%clk 0:02:11]} 18. Be5 {[%clk 0:00:43]}  f6 {[%clk 0:01:58]} 19. Bg3 {[%clk 0:00:42]}  Bd6 {[%clk 0:01:55]} 20. Nxd5 {[%clk 0:00:35]}  Bxg3 {[%clk 0:01:51]} 21. Nb6 {[%clk 0:00:35]}  Qc6 {[%clk 0:01:48]} 22. Nxa8 {[%clk 0:00:30]}  Bd6 {[%clk 0:01:47]} 23. Rc1 {[%clk 0:00:25]}  Rxa8 {[%clk 0:01:46]} 24. Qxc4+ {[%clk 0:00:25]}  Qxc4 {[%clk 0:01:45]} 25. Rxc4 {[%clk 0:00:26]}  b5 {[%clk 0:01:41]} 26. Rc6 {[%clk 0:00:22]}  Be7 {[%clk 0:01:40]} 27. axb5 {[%clk 0:00:20]}  axb5 {[%clk 0:01:40]} 28. Rb6 {[%clk 0:00:20]}  b4 {[%clk 0:01:40]} 29. Rc1 {[%clk 0:00:19]}  f5 {[%clk 0:01:36]} 30. Rb7 {[%clk 0:00:18]}  Bf8 {[%clk 0:01:33]} 31. Rc6 {[%clk 0:00:12]}  Nf6 {[%clk 0:01:32]} 32. h4 {[%clk 0:00:12]}  Ra2 {[%clk 0:01:30]} 33. Rc8 {[%clk 0:00:11]}  Rxb2 {[%clk 0:01:15]} 34. Rbb8 {[%clk 0:00:11]}  Nd7 {[%clk 0:01:15]} 35. Rb7 {[%clk 0:00:12]}  Nf6 {[%clk 0:01:15]} 36. Rbb8 {[%clk 0:00:12]}  Nd7 {[%clk 0:01:15]} 37. Rb7 {[%clk 0:00:13]}  Nf6 {[%clk 0:01:14]} 1/2-1/2


[Site "https://www.chess.com"]

[Event "Titled Tuesday Blitz April 11 Early 2023"]
[White "Zemach, Roee"]
[Black "Larina, Maria"]
[WhiteFideId "2818531"]
[BlackFideId "24113182"]
[WhiteElo "2217"]
[BlackElo "1848"]
[Result "1-0"]
[Round "05"]
[TimeControl "180+2"]
[Date "2023.04.11"]
[WhiteClock "0:01:01"]
[BlackClock "0:00:21"]

1. d4 {[%clk 0:02:56]}  f5 {[%clk 0:02:59]} 2. Nc3 {[%clk 0:02:48]}  Nf6 {[%clk 0:02:59]} 3. Bg5 {[%clk 0:02:47]}  d5 {[%clk 0:02:59]} 4. Bxf6 {[%clk 0:02:45]}  exf6 {[%clk 0:03:00]} 5. e3 {[%clk 0:02:44]}  Be6 {[%clk 0:02:58]} 6. Bd3 {[%clk 0:02:43]}  Nc6 {[%clk 0:02:54]} 7. Qf3 {[%clk 0:02:42]}  Qd7 {[%clk 0:02:52]} 8. h4 {[%clk 0:02:41]}  h5 {[%clk 0:02:49]} 9. a3 {[%clk 0:02:34]}  Bd6 {[%clk 0:02:35]} 10. Nh3 {[%clk 0:02:33]}  g6 {[%clk 0:02:33]} 11. Ne2 {[%clk 0:02:32]}  Bf7 {[%clk 0:02:33]} 12. Nhf4 {[%clk 0:02:30]}  Ne7 {[%clk 0:02:29]} 13. b3 {[%clk 0:02:14]}  O-O-O {[%clk 0:02:16]} 14. c4 {[%clk 0:02:12]}  dxc4 {[%clk 0:02:02]} 15. Bxc4 {[%clk 0:02:05]}  Nc6 {[%clk 0:01:43]} 16. g3 {[%clk 0:01:51]}  Na5 {[%clk 0:01:36]} 17. Bxf7 {[%clk 0:01:48]}  Qxf7 {[%clk 0:01:37]} 18. d5 {[%clk 0:01:48]}  Be5 {[%clk 0:01:34]} 19. Rd1 {[%clk 0:01:35]}  Nxb3 {[%clk 0:00:58]} 20. e4 {[%clk 0:01:35]}  fxe4 {[%clk 0:00:58]} 21. Qxb3 {[%clk 0:01:34]}  g5 {[%clk 0:00:53]} 22. Ne6 {[%clk 0:01:17]}  Rd6 {[%clk 0:00:50]} 23. hxg5 {[%clk 0:01:08]}  fxg5 {[%clk 0:00:50]} 24. Nxg5 {[%clk 0:01:09]}  Qg6 {[%clk 0:00:47]} 25. Qe3 {[%clk 0:01:08]}  Rg8 {[%clk 0:00:41]} 26. Nxe4 {[%clk 0:01:06]}  Bg7 {[%clk 0:00:23]} 27. Nxd6+ {[%clk 0:01:03]}  Qxd6 {[%clk 0:00:24]} 28. Qe6+ {[%clk 0:01:02]}  Qxe6 {[%clk 0:00:22]} 29. dxe6 {[%clk 0:01:03]}  Be5 {[%clk 0:00:21]} 30. Rxh5 {[%clk 0:01:01]} 1-0


[Site "https://www.chess.com"]